fUSD/lending_fUSD_20241230
["ID","MTS","AMOUNT","RATE_DAILY","PERIOD"]
[347169960,1735542637939,-5800.0,0.00016392,2]
[347169961,1735542637948,-150.0,0.00016399,2]
[347169962,1735542637958,-5800.0,0.000164,2]
[347169963,1735542637968,-230.0,0.000164,2]
[347169964,1735542637977,-1330.89448008,0.000164,2]
[347169965,1735542637988,-159.583949,0.000164,2]
[347169966,1735542637997,-159.58394894,0.000164,2]
[347169967,1735542638007,-159.58394894,0.000164,2]
[347169968,1735542638017,-159.58394894,0.000164,2]
[347169969,1735542638026,-159.58394894,0.000164,2]
[347169970,1735542638036,-2383.00388751,0.000164,2]
[347169971,1735542638045,-159.58394894,0.000164,2]
[347169972,1735542638055,-365.0,0.000164,2]
[347169973,1735542638064,-159.58394894,0.000164,2]
[347169974,1735542638073,-159.58394894,0.000164,2]
[347169975,1735542638083,-159.58394894,0.000164,2]
[347169976,1735542638092,-159.58394894,0.000164,2]
[347169977,1735542638102,-159.58394894,0.000164,2]
[347169978,1735542638112,-159.58394894,0.000164,2]
[347169979,1735542638121,-1000.0,0.000164,2]
[347169980,1735542638131,-159.58394894,0.000164,2]
[347169981,1735542638140,-159.58394894,0.000164,2]
[347169982,1735542638151,-150.0,0.00016402,2]
[347169983,1735542638160,-150.0,0.00016403,2]
[347169984,1735542638170,-150.0,0.00016408,2]
[347169985,1735542638179,-150.0,0.0001641,2]
[347169986,1735542638189,-150.0,0.00016419,2]
[347169987,1735542638199,-150.0,0.0001642,2]
[347169988,1735542638208,-150.0,0.00016421,2]
[347169989,1735542638218,-150.0,0.00016423,2]
[347169990,1735542638228,-500.0,0.00016437,2]
[347169991,1735542638237,-500.0,0.00016437,2]
[347169992,1735542638247,-500.0,0.00016437,2]
[347169994,1735542638256,-183.54,0.00016437,2]
[347169996,1735542638266,-500.0,0.00016437,2]
[347169998,1735542638275,-500.0,0.00016437,2]
[347170000,1735542638284,-500.0,0.00016437,2]
[347170002,1735542638294,-500.0,0.00016437,2]
[347170003,1735542638303,-500.0,0.00016437,2]
[347170004,1735542638313,-150.0,0.00016438,2]
[347170005,1735542638323,-150.0,0.00016439,2]
[347170006,1735542638332,-150.0,0.00016444,2]
[347170007,1735542638342,-10000.0,0.00016446,2]
[347170008,1735542638352,-150.0,0.0001645,2]
[347170009,1735542638361,-150.0,0.00016452,2]
[347170010,1735542638371,-150.0,0.00016456,2]
[347170011,1735542638380,-300.0,0.00016459,2]
[347170012,1735542638390,-166.13908135,0.00016466,2]
[347170014,1735542638399,-150.0,0.00016466,2]
[347170016,1735542638408,-202.76237471,0.00016466,2]
[347170018,1735542638418,-276.4064148,0.00016466,2]
[347170020,1735542638428,-150.0,0.00016466,2]
[347170022,1735542638437,-601.37953894,0.0001647,2]
[347170024,1735542638446,-300.0,0.00016471,2]
[347170026,1735542638455,-300.0,0.00016471,2]
[347170028,1735542638464,-500.72810466,0.00016473,2]
[347170030,1735542638473,-500.0,0.00016473,2]
[347170032,1735542638482,-150.0,0.00016476,2]
[347170034,1735542638491,-2398.4581229,0.00016477,2]
[347170036,1735542638499,-434.06883001,0.00016477,2]
[347170038,1735542638508,-500.0,0.00016477,2]
[347170040,1735542638517,-1498.3140001,0.00016477,2]
[347170042,1735542638526,-500.0,0.00016477,2]
[347170044,1735542638536,-500.0,0.00016477,2]
[347170046,1735542638545,-500.0,0.00016477,2]
[347170048,1735542638556,-500.0,0.00016477,2]
[347170050,1735542638565,-500.0,0.00016477,2]
[347170052,1735542638575,-500.0,0.00016477,2]
[347170054,1735542638584,-500.0,0.00016477,2]
[347170056,1735542638593,-500.0,0.00016477,2]
[347170058,1735542638603,-882.51,0.00016477,2]
[347170060,1735542638612,-500.0,0.00016477,2]
[347170062,1735542638622,-585.09790294,0.00016477,2]
[347170064,1735542638631,-500.0,0.00016477,2]
[347170066,1735542638641,-1397.7,0.00016477,2]
[347170068,1735542638650,-583.46,0.00016477,2]
[347170070,1735542638659,-500.0,0.00016477,2]
[347170072,1735542638672,-500.0,0.00016477,2]
[347170074,1735542638681,-1425.57,0.00016477,2]
[347170076,1735542638691,-500.0,0.00016477,2]
[347170078,1735542638700,-500.0,0.00016477,2]
[347170080,1735542638711,-7442.57,0.00016477,2]
[347170082,1735542638720,-1124.02,0.00016477,2]
[347170084,1735542638731,-397.9341081,0.00016477,2]
[347170086,1735542638741,-1235.08,0.00016477,2]
[347170088,1735542638750,-611.69,0.00016477,2]
[347170090,1735542638760,-999.11,0.00016477,2]
[347170092,1735542638769,-500.0,0.00016478,2]
[347170095,1735542638779,-629.89618046,0.00016478,2]
[347170097,1735542638788,-204.63,0.00016478,2]
[347170098,1735542638798,-500.0,0.00016478,2]
[347170101,1735542638807,-500.0,0.00016478,2]
[347170102,1735542638817,-500.0,0.00016478,2]
[347170105,1735542638827,-158.751719,0.00016478,2]
[347170107,1735542638837,-3175.308026,0.00016478,2]
[347170109,1735542638846,-2866.07,0.00016478,2]
[347170111,1735542638855,-500.0,0.00016478,2]
[347170112,1735542638865,-2602.441812,0.00016478,2]
[347170114,1735542638874,-500.0,0.00016478,2]
[347170116,1735542638883,-500.0,0.00016478,2]
[347170118,1735542638893,-500.0,0.00016478,2]
[347170120,1735542638902,-500.0,0.00016478,2]
[347170122,1735542638912,-1388.7,0.00016478,2]
[347170124,1735542638922,-500.0,0.00016478,2]
[347170127,1735542638932,-2566.4,0.00016478,2]
[347170129,1735542638942,-602.24,0.00016478,2]
[347170131,1735542638952,-3573.84,0.00016478,2]
[347170133,1735542638962,-1647.8,0.00016478,2]
[347170135,1735542638971,-500.0,0.00016478,2]
[347170137,1735542638982,-6308.93,0.00016478,2]
[347170139,1735542638992,-4186.6,0.00016478,2]
[347170141,1735542639001,-500.0,0.00016478,2]
[347170143,1735542639012,-1000.0,0.00016478,2]
[347170145,1735542639021,-500.0,0.00016478,2]
[347170147,1735542639031,-644.89,0.00016478,2]
[347170149,1735542639041,-500.0,0.00016478,2]
[347170151,1735542639053,-243.98185914,0.00016478,2]
[347170153,1735542639062,-500.0,0.00016478,2]
[347170155,1735542639072,-500.0,0.00016478,2]
[347170157,1735542639082,-500.0,0.00016478,2]
[347170159,1735542639091,-500.0,0.00016478,2]
[347170161,1735542639100,-539.56,0.00016478,2]
[347170163,1735542639110,-1832.01,0.00016478,2]
[347170165,1735542639120,-833.51,0.00016478,2]
[347170167,1735542639129,-500.0,0.00016478,2]
[347170169,1735542639139,-1627.86,0.00016478,2]
[347170171,1735542639148,-500.0,0.00016478,2]
[347170173,1735542639158,-500.0,0.00016478,2]
[347170175,1735542639168,-626.7535482,0.00016478,2]
[347170177,1735542639178,-500.0,0.00016478,2]
[347170179,1735542639187,-500.0,0.00016478,2]
[347170181,1735542639197,-500.0,0.00016478,2]
[347170183,1735542639207,-500.0,0.00016478,2]
[347170185,1735542639217,-500.0,0.00016478,2]
[347170187,1735542639227,-500.0,0.00016478,2]
[347170189,1735542639236,-746.12,0.00016478,2]
[347170191,1735542639246,-500.0,0.00016478,2]
[347170193,1735542639255,-500.0,0.00016478,2]
[347170195,1735542639265,-500.0,0.00016478,2]
[347170197,1735542639274,-1092.33,0.00016478,2]
[347170199,1735542639283,-500.0,0.00016478,2]
[347170201,1735542639292,-183.44508909,0.00016478,2]
[347170203,1735542639304,-1640.76,0.00016478,2]
[347170205,1735542639314,-500.0,0.00016478,2]
[347170207,1735542639324,-500.0,0.00016478,2]
[347170209,1735542639334,-1344.34,0.00016478,2]
[347170211,1735542639344,-2740.3,0.00016478,2]
[347170213,1735542639353,-1466.89,0.00016478,2]
[347170215,1735542639363,-500.0,0.00016478,2]
[347170217,1735542639372,-500.0,0.00016479,2]
[347170219,1735542639381,-55453.55990365,0.00016479,2]
[347170222,1735542639395,-22806.81009635,0.00016479,2]
[347170224,1735542639405,-190862.02404098,0.00016479,2]
[347170226,1735542639416,-902.63081299,0.00016479,2]
[347170228,1735542639427,-13749.21415508,0.00016479,2]
[347170230,1735542639439,-918.803945,0.00016479,2]
[347170233,1735542639452,-23020.61447997,0.00016479,2]
[347170235,1735542639467,-11511.68220636,0.00016479,2]
[347170238,1735542639484,-2896.39516468,0.00016479,2]
[347170240,1735542639495,-42387.08291204,0.00016479,2]
[347170242,1735542639508,-3121.87488047,0.00016479,2]
[347170280,1735542639851,-500.0,0.00016478,2]
[347170283,1735542639862,-4419.72166071,0.00016479,2]
[347170285,1735542639874,-491.055,0.00016479,2]
[347170287,1735542639886,-1049.41419005,0.00016479,2]
[347170290,1735542639898,-1685.77121904,0.00016479,2]
[347170292,1735542639910,-1007.52312096,0.00016479,2]
[347170298,1735542639966,-375.04686575,0.00016479,2]
[347170302,1735542639993,-193129.40211064,0.00016479,2]
[347170314,1735542640102,-157941.61681089,0.00016479,2]
[347170420,1735542645901,-159.58394894,0.000164,2]
[347170422,1735542645910,-493.57,0.00016478,2]
[347170424,1735542645919,-4917.30059074,0.00016479,2]
[347170429,1735542646077,-5800.0,0.000164,2]
[347170430,1735542646087,-683216.07658497,0.00016479,2]
[347170434,1735542777142,243.16,0.00012986,2]
[347170435,1735542814254,-199697.13590486,0.0001648,10]
[347170436,1735543044938,-29890.7553544,0.0001648,10]
[347170437,1735543310719,243.42,0.00010137,2]
[347170438,1735543325780,450.0,0.00012,2]
[347170440,1735543546180,-432.02,0.00013156,2]
[347170441,1735543546202,-500.0,0.00014,2]
[347170442,1735543546224,-150.0,0.00014819,2]
[347170443,1735543546247,-150.0,0.00014819,2]
[347170444,1735543546268,-150.0,0.00014819,2]
[347170445,1735543546291,-150.0,0.00014883,2]
[347170446,1735543546313,-150.0,0.00014946,2]
[347170447,1735543546334,-150.0,0.00015009,2]
[347170448,1735543546356,-250.0,0.00015023,2]
[347170449,1735543546378,-150.0,0.00015025,2]
[347170450,1735543546400,-1000.0,0.00015035,2]
[347170451,1735543546423,-150.0,0.00015054,2]
[347170452,1735543546446,-404.2,0.00015063,2]
[347170453,1735543546467,-150.0,0.00015072,2]
[347170454,1735543546488,-150.0,0.00015136,2]
[347170455,1735543546509,-126.71452629,0.00015199,2]
[347170456,1735543553957,14042.43815145,6.94e-05,2]
[347170457,1735543561729,5679.78157957,9.8e-05,2]
[347170458,1735543621246,50000.0,0.0002,120]
[347170459,1735543641129,-150.0,0.00014819,2]
[347170460,1735543641154,-250.0,0.00014956,2]
[347170461,1735543641177,-949.89678068,0.0001499,2]
[347170462,1735543649205,-171.4767333,0.000185,90]
[347170463,1735543649252,-6033.29191745,0.0002,60]
[347170464,1735543649326,-2000.0,0.00022999,120]
[347170465,1735543649351,-200.0,0.00022999,120]
[347170466,1735543649388,-150.0,0.00023979,120]
[347170467,1735543649416,-1000.0,0.00024,120]
[347170468,1735543649442,-16620.35745865,0.00024,120]
[347170469,1735543649468,-150.0,0.00024001,120]
[347170470,1735543649494,-150.0,0.0002429,120]
[347170471,1735543649518,-338.41155279,0.000244,120]
[347170472,1735543649544,-21796.0,0.000246,60]
[347170473,1735543649571,-177.13,0.0002467,120]
[347170474,1735543649594,-318.0,0.0002467,120]
[347170475,1735543649619,-318.0,0.0002467,120]
[347170476,1735543649643,-244.0,0.00024674,120]
[347170477,1735543649668,-255.0,0.00024674,120]
[347170478,1735543649691,-222.0,0.00024674,120]
[347170479,1735543649922,-288.0,0.00024674,120]
[347170480,1735543649948,-259.27,0.0002468,120]
[347170481,1735543649974,-153.3,0.0002468,120]
[347170482,1735543650000,-318.0,0.0002468,120]
[347170483,1735543650026,-318.0,0.0002468,120]
[347170484,1735543650052,-318.0,0.0002468,120]
[347170485,1735543650078,-320.63,0.0002468,120]
[347170486,1735543650109,-1000.0,0.0002469,120]
[347170487,1735543650136,-268.07,0.0002469,120]
[347170488,1735543650162,-318.0,0.0002469,120]
[347170489,1735543650187,-318.0,0.0002469,120]
[347170490,1735543650214,-318.0,0.0002469,120]
[347170491,1735543650239,-318.0,0.0002469,120]
[347170492,1735543650265,-485.81,0.00024712,120]
[347170493,1735543650290,-202.0,0.00024713,120]
[347170494,1735543650317,-112863.38375379,0.00024722,120]
[347170495,1735543650343,-500.0,0.00024731,120]
[347170496,1735543650369,-91616.83533279,0.00024735,120]
[347170497,1735543650396,-91616.83533279,0.00024735,120]
[347170498,1735543650421,-150.0,0.0002487,120]
[347170499,1735543650446,-500.0,0.0002488,120]
[347170500,1735543650471,-500.0,0.0002488,120]
[347170501,1735543650495,-250.0059292,0.000249,120]
[347170502,1735543650520,-150.5,0.0002497,120]
[347170503,1735543650544,-150.5,0.0002497,120]
[347170504,1735543650569,-150.5,0.0002497,120]
[347170505,1735543650593,-150.5,0.0002497,120]
[347170506,1735543650642,-150.5,0.0002498,120]
[347170507,1735543650666,-150.5,0.0002498,120]
[347170508,1735543650691,-150.5,0.0002498,120]
[347170509,1735543650717,-150.5,0.0002498,120]
[347170510,1735543650741,-150.5,0.0002498,120]
[347170511,1735543650765,-150.5,0.0002498,120]
[347170512,1735543650790,-150.5,0.0002498,120]
[347170513,1735543650814,-150.5,0.0002499,120]
[347170514,1735543650838,-150.5,0.0002499,120]
[347170515,1735543650863,-150.5,0.0002499,120]
[347170516,1735543650889,-150.5,0.0002499,120]
[347170517,1735543650913,-150.5,0.0002499,120]
[347170518,1735543650937,-150.5,0.0002499,120]
[347170519,1735543650961,-150.5,0.0002499,120]
[347170520,1735543650985,-150.5,0.0002499,120]
[347170521,1735543651010,-150.5,0.0002499,120]
[347170522,1735543651036,-3196.59318694,0.00025,60]
[347170523,1735543651060,-1000.0,0.00025,120]
[347170524,1735543651085,-277.29397966,0.00025,120]
[347170525,1735543651114,-328.43,0.00025,120]
[347170526,1735543651138,-1000.0,0.00025,120]
[347170527,1735543651162,-150.0,0.00025003,120]
[347170528,1735543651188,-150.0,0.00025003,120]
[347170529,1735543651213,-150.0,0.00025003,120]
[347170530,1735543651238,-150.0,0.00025003,120]
[347170531,1735543651263,-200.0,0.00025003,120]
[347170532,1735543651288,-150.0,0.00025023,120]
[347170533,1735543651314,-150.0,0.00025179,120]
[347170534,1735543651340,-150.0,0.00025599,120]
[347170535,1735543651366,-500.0,0.00025752,120]
[347170536,1735543651393,-1000.0,0.00026,120]
[347170537,1735543651419,-2421.06984326,0.00026,120]
[347170538,1735543651446,-500.0,0.00026,120]
[347170539,1735543651471,-2094.20610324,0.00026,120]
[347170540,1735543651496,-500.0,0.0002667,120]
[347170541,1735543651520,-800.0,0.00026986,120]
[347170542,1735543651545,-800.0,0.00026986,120]
[347170543,1735543651570,-800.0,0.00026986,120]
[347170544,1735543651595,-800.0,0.00026986,120]
[347170545,1735543651619,-800.0,0.00026986,120]
[347170546,1735543651644,-800.0,0.00026986,120]
[347170547,1735543651671,-800.0,0.00026986,120]
[347170548,1735543651695,-800.0,0.00026986,120]
[347170549,1735543651719,-800.0,0.00026986,120]
[347170550,1735543651744,-150.0,0.00027,120]
[347170551,1735543651768,-1000.0,0.00027,120]
[347170552,1735543651792,-10000.0,0.00027,120]
[347170553,1735543651817,-10000.0,0.00027,120]
[347170554,1735543651841,-10000.0,0.00027,120]
[347170555,1735543651865,-678.52728406,0.00027,120]
[347170556,1735543651891,-2000.0,0.00027,120]
[347170557,1735543651917,-1500.0,0.00027,120]
[347170558,1735543651941,-500.0,0.00027,120]
[347170559,1735543651966,-1000.0,0.00027,120]
[347170560,1735543651991,-13328.0,0.00027,120]
[347170561,1735543652017,-2000.0,0.00027272,120]
[347170562,1735543652042,-150.0,0.000273,120]
[347170563,1735543652067,-254.96110486,0.0002736,120]
[347170564,1735543652091,-23000.0,0.00027397,60]
[347170565,1735543652118,-200.00795661,0.00027397,60]
[347170566,1735543652145,-150.0,0.00027397,120]
[347170567,1735543652171,-372.44954,0.000275,120]
[347170568,1735543652201,-150.0,0.000275,120]
[347170569,1735543652229,-3000.0,0.000275,120]
[347170570,1735543652256,-500.0,0.00027587,120]
[347170571,1735543652454,-242.42465,0.000276,120]
[347170572,1735543652480,-150.0,0.000276,120]
[347170573,1735543652504,-150.0,0.000278,120]
[347170574,1735543652529,-242.42465,0.000279,120]
[347170575,1735543652554,-184.8493,0.000279,120]
[347170576,1735543652579,-372.44954,0.00028,120]
[347170577,1735543652603,-2000.0,0.00028,120]
[347170578,1735543652628,-283.48087,0.00028,120]
[347170579,1735543652654,-10000.0,0.00028,120]
[347170580,1735543652679,-242.42465,0.000282,120]
[347170581,1735543652703,-13546.72695107,0.00028297,120]
[347170582,1735543652728,-372.44954,0.000285,120]
[347170583,1735543652752,-242.42465,0.000285,120]
[347170584,1735543652776,-500.0,0.00028505,120]
[347170585,1735543652802,-222.44954,0.000286,120]
[347170586,1735543652826,-242.42465,0.000288,120]
[347170587,1735543652851,-372.44954,0.00029,120]
[347170588,1735543652878,-2000.0,0.00029,120]
[347170589,1735543652905,-6300.0,0.00029,60]
[347170590,1735543652931,-1000.0,0.00029,120]
[347170591,1735543652957,-2900.0,0.00029,120]
[347170592,1735543652981,-10000.0,0.00029,120]
[347170593,1735543653005,-10000.0,0.00029,120]
[347170594,1735543653031,-10000.0,0.00029,120]
[347170595,1735543653056,-709906.28906494,0.00029,120]
[347170596,1735543653083,-242.42465,0.000291,120]
[347170597,1735543653110,-242.42469,0.000294,120]
[347170598,1735543653141,-500.0,0.00029423,120]
[347170599,1735543653168,-372.44954,0.000295,120]
[347170600,1735543653201,-498.688,0.0002989,120]
[347170601,1735543653229,-491.83580898,0.0002998,120]
[347170602,1735543653258,-1046.42666487,0.0003,120]
[347170603,1735543653285,-2000.0,0.0003,120]
[347170604,1735543653311,-151.0,0.0003,120]
[347170605,1735543653335,-19385.46003992,0.0003,120]
[347170606,1735543653360,-200.0,0.0003,120]
[347170607,1735543653390,-253.75555556,0.0003,120]
[347170608,1735543653416,-50000.0,0.0003,60]
[347170609,1735543653444,-10000.0,0.0003,120]
[347170610,1735543653470,-7520.0,0.0003,120]
[347170611,1735543653495,-5485.9335942,0.0003,120]
[347170612,1735543653520,-15000.0,0.0003,60]
[347170613,1735543653546,-21452.34753918,0.0003,120]
[347170614,1735543653572,-1000.0,0.0003,120]
[347170615,1735543653597,-30000.0,0.0003,120]
[347170616,1735543653625,-20000.0,0.0003,120]
[347170617,1735543653653,-20000.0,0.0003,120]
[347170618,1735543653681,-10020.0,0.0003,120]
[347170619,1735543653709,-2048.7276896,0.0003,120]
[347170620,1735543653735,-100000.0,0.0003,120]
[347170621,1735543653761,-2000.0,0.0003,120]
[347170622,1735543653788,-555.0,0.0003,120]
[347170623,1735543653817,-1942.0,0.0003,120]
[347170624,1735543653845,-1200.0,0.0003,120]
[347170625,1735543653874,-15517.92512849,0.0003,120]
[347170626,1735543653905,-200.00408061,0.00030137,60]
[347170627,1735543670703,-3003.41432694,0.00024978,60]
[347170628,1735543670729,-520.80317158,0.00024978,60]
[347170629,1735543670755,-3660.22568741,0.00024978,90]
[347170630,1735543670780,-182.53426361,0.00024978,60]
[347170631,1735543670807,-263.07029121,0.00024978,90]
[347170632,1735543670833,-171.95330007,0.00024978,91]
[347170633,1735543670859,-174.05655962,0.00024978,60]
[347170634,1735543670886,-781208.33839828,0.00024978,60]
[347170635,1735543670912,-206.47188138,0.00024978,60]
[347170636,1735543670936,-163.00417607,0.00024978,60]
[347170637,1735543670960,-4047.05822687,0.00024978,60]
[347170638,1735543670985,-1000.0,0.00024978,60]
[347170639,1735543671010,-1000.0,0.00024978,60]
[347170640,1735543671036,-1000.0,0.00024978,60]
[347170641,1735543671061,-1000.0,0.00024978,60]
[347170642,1735543671085,-1000.0,0.00024978,60]
[347170643,1735543671115,-1000.0,0.00024978,60]
[347170644,1735543671140,-4690.30644712,0.00024978,120]
[347170645,1735543671166,-17065.38982932,0.00024978,120]
[347170646,1735543671190,-166.27303243,0.00024978,120]
[347170647,1735543671214,-220.8112751,0.00024978,120]
[347170648,1735543671238,-172.10437594,0.00024978,120]
[347170649,1735543671262,-25842.42527472,0.00024978,120]
[347170650,1735543671287,-613.0,0.00024978,120]
[347170651,1735543671313,-206.39254897,0.00024978,120]
[347170653,1735543703543,492.48425354,0.00012999,2]
[347170654,1735543704213,374.25227987,7.888e-05,2]
[347170655,1735543710527,213.86922629,0.0001,2]
[347170656,1735543711057,184.26882968,0.0002,120]
[347170660,1735543720344,151.95229041,0.0002,120]
[347170703,1735543832152,-347.63,0.00014958,2]
[347170705,1735543832162,-300.0,0.00014989,2]
[347170707,1735543832171,-993.41428466,0.0001499,2]
[347170709,1735543832183,-550.0,0.0001499,2]
[347170711,1735543832199,-2247.68067609,0.0001499,2]
[347170712,1735543832211,-15761.08206182,0.0001499,2]
[347170713,1735543832220,-23.28547371,0.00015199,2]
[347170714,1735543832234,-2999.99,0.0001522,2]
[347170715,1735543832243,-3000.0,0.0001522,2]
[347170716,1735543832253,-1312.69,0.0001522,2]
[347170717,1735543832263,-2999.99,0.0001522,2]
[347170718,1735543832274,-3000.01,0.0001522,2]
[347170719,1735543832283,-2999.95,0.0001522,2]
[347170720,1735543832292,-150.0,0.00015231,2]
[347170721,1735543832302,-150.0,0.00015262,2]
[347170722,1735543832312,-150.0,0.0001529,2]
[347170723,1735543832322,-1517.64,0.000153,2]
[347170724,1735543832331,-498.4,0.00015325,2]
[347170725,1735543832341,-150.0,0.00015326,2]
[347170726,1735543832351,-496.89,0.00015328,2]
[347170727,1735543832360,-491.53,0.00015332,2]
[347170728,1735543832370,-496.15,0.00015337,2]
[347170729,1735543832379,-505.38,0.00015345,2]
[347170730,1735543832388,-491.03,0.00015356,2]
[347170731,1735543832398,-505.7,0.0001537,2]
[347170732,1735543832407,-250.0,0.00015378,2]
[347170733,1735543832416,-492.43,0.00015387,2]
[347170734,1735543832426,-150.0,0.00015389,2]
[347170735,1735543832435,-15934.11462272,0.000154,2]
[347170736,1735543832445,-484.58093188,0.000154,2]
[347170737,1735543832454,-498.38,0.00015418,2]
[347170738,1735543832464,-432.02,0.0001542,2]
[347170739,1735543832473,-150.0,0.00015437,2]
[347170740,1735543832483,-169.98,0.0001544,2]
[347170741,1735543832492,-464.25,0.0001544,2]
[347170742,1735543832501,-169.52,0.00015446,2]
[347170743,1735543832510,-150.0,0.00015452,2]
[347170744,1735543832519,-492.88,0.00015467,2]
[347170745,1735543832528,-150.0,0.00015516,2]
[347170746,1735543832538,-150.0,0.00015525,2]
[347170747,1735543832547,-508.58,0.00015563,2]
[347170748,1735543832557,-150.0,0.00015579,2]
[347170749,1735543832567,-501.94,0.00015586,2]
[347170750,1735543832577,-496.86,0.0001562,2]
[347170751,1735543832587,-150.0,0.00015642,2]
[347170752,1735543832596,-150.0,0.00015642,2]
[347170753,1735543832606,-499.728,0.0001566,2]
[347170754,1735543832615,-508.53,0.00015671,2]
[347170755,1735543832625,-150.0,0.00015706,2]
[347170756,1735543832635,-493.76,0.00015748,2]
[347170757,1735543832644,-150.0,0.0001576,2]
[347170758,1735543832654,-150.0,0.00015769,2]
[347170759,1735543832663,-150.0,0.00015832,2]
[347170760,1735543832673,-150.0,0.00015848,2]
[347170761,1735543832682,-501.51,0.00015863,2]
[347170762,1735543832692,-150.0,0.00015896,2]
[347170763,1735543832701,-150.0,0.00015959,2]
[347170764,1735543832711,-23538.73453224,0.0001598,2]
[347170765,1735543832721,-500.0,0.00015987,2]
[347170766,1735543832731,-800.0,0.00015987,2]
[347170767,1735543832741,-502.75,0.00015987,2]
[347170768,1735543832750,-490.76,0.00015987,2]
[347170769,1735543832761,-150.0,0.00015995,2]
[347170770,1735543832770,-550.0,0.00016,2]
[347170771,1735543832779,-150.0,0.00016022,2]
[347170772,1735543832792,-150.0,0.00016054,2]
[347170773,1735543832802,-150.0,0.00016086,2]
[347170774,1735543832811,-150.0,0.00016149,2]
[347170775,1735543832820,-1049.92550069,0.00016149,2]
[347170776,1735543832830,-1030.5330787,0.0001615,2]
[347170777,1735543832838,-1397.18095651,0.0001615,2]
[347170778,1735543832848,-3891.0,0.0001616,2]
[347170779,1735543832858,-429.34778484,0.0001618,2]
[347170780,1735543832867,-1000.0,0.000162,2]
[347170781,1735543832876,-150.0,0.00016212,2]
[347170782,1735543832886,-150.0,0.00016231,2]
[347170783,1735543832895,-150.0,0.00016243,2]
[347170784,1735543832905,-150.0,0.0001626,2]
[347170785,1735543832914,-150.0,0.00016276,2]
[347170786,1735543832923,-1005.0,0.000163,2]
[347170787,1735543832933,-150.0,0.00016305,2]
[347170788,1735543832943,-1486.44916,0.0001631,2]
[347170789,1735543832952,-1500.0,0.00016336,2]
[347170790,1735543832962,-300.0,0.00016337,2]
[347170791,1735543832971,-4368.319,0.00016337,2]
[347170792,1735543832980,-234.045,0.00016337,2]
[347170793,1735543832990,-150.0,0.00016339,2]
[347170794,1735543833000,-150.0,0.0001634,2]
[347170795,1735543833009,-150.0,0.00016342,2]
[347170796,1735543833019,-500.0,0.00016348,2]
[347170797,1735543833029,-32146.3679,0.00016377,2]
[347170798,1735543833039,-150.0,0.00016378,2]
[347170799,1735543833048,-379.8879,0.00016379,2]
[347170800,1735543833058,-5000.0,0.0001638,2]
[347170801,1735543833067,-436.94445063,0.0001638,2]
[347170802,1735543833077,-887.26298673,0.0001638,2]
[347170803,1735543833086,-163.41378786,0.0001638,2]
[347170804,1735543833096,-163.41378783,0.00016384,2]
[347170805,1735543833105,-163.41378783,0.00016388,2]
[347170806,1735543833114,-436.94445062,0.0001639,2]
[347170807,1735543833124,-887.26298672,0.0001639,2]
[347170808,1735543833133,-5800.0,0.00016392,2]
[347170809,1735543833143,-163.41378783,0.00016392,2]